Workbook

Sheet TOTALI
B1: ELEZIONI REGIONALI | C1: TOTALI
B2: ='SEZIONE (1)'!B2 -> REGIONE PIEMONTE
C4: MASCHI | D4: FEMMINE | E4: TOTALI
B5: ELETTORI | C5: =SUM('SEZIONE (1):SEZIONE (2)'!C5:C5) -> 875 | D5: =SUM('SEZIONE (1):SEZIONE (2)'!D5:D5) -> 874 | E5: =SUM(C5:D5) -> 1749
B6: VOTANTI | C6: =SUM('SEZIONE (1):SEZIONE (2)'!C6:C6) -> 583 | D6: =SUM('SEZIONE (1):SEZIONE (2)'!D6:D6) -> 581 | E6: 1164 | F6: =IFERROR(E6/E5,"-") -> 0.6655231561
B8: BIANCHE | C8: 39 | D8: =C8/E6 -> 0.03350515464
B9: NULLE | C9: 32 | D9: =C9/E6 -> 0.02749140893
B10: CONTESTATE | C10: 0 | D10: =C10/E6 -> 0
B12: VOTI VALIDI | C12: =E6-(C8+C9+C10) -> 1093 | D12: =IFERROR(C12/E6,"-") -> 0.9390034364
B17: CANDIDATO | C17: PRESIDENTE DELLA GIUNTA REGIONALE
A19: 1 | B19: ='SEZIONE (1)'!B19:B20 -> ALBERTO COSTANZO | C19: VOTI AL CANDIDATO | D19: 10
C20: TOTALE | E20: =D19/C12 -> 0.009149130833
A23: 2 | B23: ='SEZIONE (1)'!B23:B24 -> FRANCESCA FREDIANI | C23: VOTI AL CANDIDATO | D23: 12
C24: TOTALE | E24: =IFERROR(D23/$C$12,"-") -> 0.010978957
A27: 3 | B27: ='SEZIONE (1)'!B27:B28 -> SARAH DISABATO | C27: VOTI AL CANDIDATO | D27: 49
C28: TOTALE | E28: =IFERROR(D27/$C$12,"-") -> 0.04483074108
A31: 4 | B31: ='SEZIONE (1)'!B31:B32 -> ALBERTO CIRIO | C31: VOTI AL CANDIDATO | D31: 787
C32: TOTALE | E32: =IFERROR(D31/$C$12,"-") -> 0.7200365965
A35: 5 | B35: ='SEZIONE (1)'!B35:B36 -> GIOVANNA PENTENERO | C35: VOTI AL CANDIDATO | D35: 235
C36: TOTALE | E36: =IFERROR(D35/$C$12,"-") -> 0.2150045746

Sheet SEZIONE (1)
B1: ELEZIONI REGIONALI | C1: SEZIONE (1)
B2: REGIONE PIEMONTE
C4: MASCHI | D4: FEMMINE | E4: TOTALI
B5: ELETTORI | C5: 475 | D5: 487 | E5: =SUM(C5:D5) -> 962
B6: VOTANTI | C6: 306 | D6: 296 | E6: 602 | F6: =IFERROR(E6/E5,"-") -> 0.6257796258
B8: BIANCHE | C8: 24 | D8: =C8/E6 -> 0.03986710963 | E8: =IF(G13=0,"",IF(C12=G13,"","ATTEZIONE: I VOTI VALIDI E LA SOMMA DI VOTI ASSEGNATI AI CANDIDATI NON COINCIDONO")) -> 
B9: NULLE | C9: 19 | D9: =C9/E6 -> 0.03156146179
B10: CONTESTATE | C10: 0 | D10: =C10/E6 -> 0
B12: VOTI VALIDI | C12: =E6-(C8+C9+C10) -> 559 | D12: =IFERROR(C12/E6,"-") -> 0.9285714286
B17: CANDIDATO | C17: PRESIDENTE DELLA GIUNTA REGIONALE
A19: 1 | B19: ALBERTO COSTANZO | C19: VOTI AL CANDIDATO | D19: 5
C20: TOTALE | E20: =IFERROR(D19/$C$12,"-") -> 0.008944543828
A23: 2 | B23: FRANCESCA FREDIANI | C23: VOTI AL CANDIDATO | D23: 5
C24: TOTALE | E24: =IFERROR(D23/$C$12,"-") -> 0.008944543828
A27: 3 | B27: SARAH DISABATO | C27: VOTI AL CANDIDATO | D27: 19
C28: TOTALE | E28: =IFERROR(D27/$C$12,"-") -> 0.03398926655
A31: 4 | B31: ALBERTO CIRIO | C31: VOTI AL CANDIDATO | D31: 402
C32: TOTALE | E32: =IFERROR(D31/$C$12,"-") -> 0.7191413238
A35: 5 | B35: GIOVANNA PENTENERO | C35: VOTI AL CANDIDATO | D35: 128
C36: TOTALE | E36: =IFERROR(D35/$C$12,"-") -> 0.228980322

Sheet SEZIONE (2)
B1: ELEZIONI REGIONALI | C1: SEZIONE (2)
B2: ='SEZIONE (1)'!B2 -> REGIONE PIEMONTE
C4: MASCHI | D4: FEMMINE | E4: TOTALI
B5: ELETTORI | C5: 400 | D5: 387 | E5: =SUM(C5:D5) -> 787
B6: VOTANTI | C6: 277 | D6: 285 | E6: 562 | F6: =IFERROR(E6/E5,"-") -> 0.7141041931
B8: BIANCHE | C8: 15 | D8: =C8/E6 -> 0.02669039146 | E8: =IF(G13=0,"",IF(C12=G13,"","ATTEZIONE: I VOTI VALIDI E LA SOMMA DI VOTI ASSEGNATI AI CANDIDATI NON COINCIDONO")) -> 
B9: NULLE | C9: 13 | D9: =C9/E6 -> 0.0231316726
B10: CONTESTATE | C10: 0 | D10: =C10/E6 -> 0
B12: VOTI VALIDI | C12: =E6-(C8+C9+C10) -> 534 | D12: =IFERROR(C12/E6,"-") -> 0.9501779359
B17: CANDIDATO | C17: PRESIDENTE DELLA GIUNTA REGIONALE
A19: 1 | B19: ='SEZIONE (1)'!B19:B20 -> ALBERTO COSTANZO | C19: VOTI AL CANDIDATO | D19: 5
C20: TOTALE | E20: =IFERROR(D19/$C$12,"-") -> 0.00936329588
A23: 2 | B23: ='SEZIONE (1)'!B23:B24 -> FRANCESCA FREDIANI | C23: VOTI AL CANDIDATO | D23: 7
C24: TOTALE | E24: =IFERROR(D23/$C$12,"-") -> 0.01310861423
A27: 3 | B27: ='SEZIONE (1)'!B27:B28 -> SARAH DISABATO | C27: VOTI AL CANDIDATO | D27: 30
C28: TOTALE | E28: =IFERROR(D27/$C$12,"-") -> 0.05617977528
A31: 4 | B31: ='SEZIONE (1)'!B31:B32 -> ALBERTO CIRIO | C31: VOTI AL CANDIDATO | D31: 385
C32: TOTALE | E32: =IFERROR(D31/$C$12,"-") -> 0.7209737828
A35: 5 | B35: ='SEZIONE (1)'!B35:B36 -> GIOVANNA PENTENERO | C35: VOTI AL CANDIDATO | D35: 107
C36: TOTALE | E36: =IFERROR(D35/$C$12,"-") -> 0.2003745318
